fUST/lending_fUST_20240429
["ID","MTS","AMOUNT","RATE_DAILY","PERIOD"]
[324853613,1714373465831,-630.39,0.00014794,2]
[324853614,1714373465841,-649.82837895,0.00014794,2]
[324853615,1714373465851,-604.09,0.00014794,2]
[324853616,1714373465861,-500.0,0.00014794,2]
[324853617,1714373465871,-523.00068671,0.00014794,2]
[324853618,1714373465881,-500.0,0.00014794,2]
[324853619,1714373465891,-500.0,0.00014794,2]
[324853620,1714373465901,-500.0,0.00014794,2]
[324853621,1714373465910,-693.58,0.00014794,2]
[324853622,1714373465920,-591.07,0.00014794,2]
[324853623,1714373465929,-598.14,0.00014794,2]
[324853624,1714373465939,-264.68478631,0.00014794,2]
[324853625,1714373465948,-673.38,0.00014794,2]
[324853626,1714373465958,-500.0,0.00014794,2]
[324853627,1714373465967,-533.22,0.00014794,2]
[324853628,1714373465980,-1230.36,0.00014794,2]
[324853629,1714373465990,-500.0,0.00014794,2]
[324853630,1714373466000,-1147.49,0.00014794,2]
[324853631,1714373466010,-500.0,0.00014794,2]
[324853632,1714373466019,-1302.49,0.00014794,2]
[324853633,1714373466029,-844.49,0.00014794,2]
[324853634,1714373466040,-500.0,0.00014794,2]
[324853635,1714373466050,-614.75,0.00014794,2]
[324853636,1714373466061,-500.0,0.00014794,2]
[324853637,1714373466071,-1388.78,0.00014794,2]
[324853638,1714373466081,-500.0,0.00014794,2]
[324853639,1714373466091,-623.41,0.00014794,2]
[324853640,1714373466101,-797.81,0.00014794,2]
[324853641,1714373466111,-500.0,0.00014794,2]
[324853642,1714373466122,-590.29,0.00014794,2]
[324853643,1714373466133,-500.0,0.00014794,2]
[324853644,1714373466143,-807.83,0.00014794,2]
[324853645,1714373466154,-607.0,0.00014794,2]
[324853646,1714373466164,-500.0,0.00014794,2]
[324853647,1714373466175,-940.83,0.00014794,2]
[324853648,1714373466185,-500.0,0.00014794,2]
[324853649,1714373466197,-500.0,0.00014794,2]
[324853650,1714373466210,-590.0,0.00014794,2]
[324853651,1714373466222,-500.0,0.00014794,2]
[324853652,1714373466236,-782.16,0.00014794,2]
[324853653,1714373466248,-500.0,0.00014794,2]
[324853654,1714373466258,-520.06,0.00014794,2]
[324853655,1714373466268,-500.0,0.00014794,2]
[324853656,1714373466279,-500.0,0.00014794,2]
[324853657,1714373466289,-500.0,0.00014794,2]
[324853658,1714373466300,-564.0,0.00014794,2]
[324853659,1714373466310,-851.11,0.00014794,2]
[324853660,1714373466320,-510.47,0.00014794,2]
[324853661,1714373466329,-500.0,0.00014794,2]
[324853662,1714373466339,-500.0,0.00014794,2]
[324853663,1714373466349,-1533.33,0.00014794,2]
[324853664,1714373466358,-1895.96,0.00014794,2]
[324853665,1714373466368,-1322.31,0.00014794,2]
[324853666,1714373466377,-500.0,0.00014794,2]
[324853667,1714373466387,-500.0,0.00014794,2]
[324853668,1714373466397,-500.0,0.00014794,2]
[324853669,1714373466407,-500.0,0.00014794,2]
[324853670,1714373466416,-1437.53,0.00014794,2]
[324853671,1714373466426,-500.0,0.00014794,2]
[324853672,1714373466435,-500.0,0.00014794,2]
[324853673,1714373466444,-1191.98,0.00014794,2]
[324853674,1714373466453,-500.0,0.00014794,2]
[324853675,1714373466462,-1134.6,0.00014794,2]
[324853676,1714373466476,-1094.75,0.00014794,2]
[324853677,1714373466485,-510.32,0.00014794,2]
[324853678,1714373466495,-2552.95,0.00014794,2]
[324853679,1714373466505,-1704.43,0.00014794,2]
[324853680,1714373466514,-1486.42,0.00014794,2]
[324853681,1714373466524,-500.0,0.00014794,2]
[324853682,1714373466533,-500.0,0.00014794,2]
[324853683,1714373466543,-500.0,0.00014794,2]
[324853684,1714373466552,-500.0,0.00014794,2]
[324853685,1714373466561,-500.0,0.00014794,2]
[324853686,1714373466571,-500.0,0.00014794,2]
[324853687,1714373466581,-500.0,0.00014794,2]
[324853688,1714373466591,-500.0,0.00014794,2]
[324853689,1714373466600,-725.26,0.00014794,2]
[324853690,1714373466610,-500.0,0.00014794,2]
[324853691,1714373466619,-500.0,0.00014794,2]
[324853692,1714373466629,-844.8,0.00014794,2]
[324853693,1714373466639,-663.85,0.00014794,2]
[324853694,1714373466649,-500.0,0.00014794,2]
[324853695,1714373466659,-590.93,0.00014794,2]
[324853696,1714373466668,-500.0,0.00014794,2]
[324853697,1714373466678,-500.0,0.00014794,2]
[324853698,1714373466687,-500.0,0.00014794,2]
[324853699,1714373466696,-500.0,0.00014794,2]
[324853700,1714373466706,-500.0,0.00014794,2]
[324853701,1714373466716,-500.0,0.00014794,2]
[324853702,1714373466728,-963.94,0.00014794,2]
[324853703,1714373466738,-500.0,0.00014794,2]
[324853704,1714373466748,-500.0,0.00014794,2]
[324853705,1714373466758,-790.18,0.00014794,2]
[324853706,1714373466768,-500.0,0.00014794,2]
[324853707,1714373466779,-1385.15,0.00014794,2]
[324853708,1714373466790,-904.16,0.00014794,2]
[324853709,1714373466800,-556.73,0.00014794,2]
[324853710,1714373466811,-500.0,0.00014794,2]
[324853711,1714373466821,-500.0,0.00014794,2]
[324853712,1714373466831,-2612.66,0.00014794,2]
[324853713,1714373466841,-670.19,0.00014794,2]
[324853714,1714373466851,-5705.05,0.00014794,2]
[324853715,1714373466861,-500.0,0.00014794,2]
[324853716,1714373466870,-3685.88,0.00014794,2]
[324853717,1714373466880,-500.0,0.00014794,2]
[324853718,1714373466890,-500.0,0.00014794,2]
[324853719,1714373466900,-500.0,0.00014794,2]
[324853720,1714373466910,-500.0,0.00014794,2]
[324853721,1714373466919,-500.0,0.00014794,2]
[324853722,1714373466934,-500.0,0.00014794,2]
[324853723,1714373466943,-500.0,0.00014794,2]
[324853724,1714373466954,-3055.4,0.00014794,2]
[324853725,1714373467047,-500.0,0.00014794,2]
[324853726,1714373467058,-943.99,0.00014794,2]
[324853727,1714373467069,-500.0,0.00014794,2]
[324853728,1714373467079,-500.0,0.00014794,2]
[324853729,1714373467090,-676.52,0.00014794,2]
[324853730,1714373467099,-2057.47,0.00014794,2]
[324853731,1714373467114,-598.25,0.00014794,2]
[324853732,1714373467124,-1272.21,0.00014794,2]
[324853733,1714373467133,-7316.87,0.00014794,2]
[324853734,1714373467154,-500.0,0.00014794,2]
[324853735,1714373467170,-726.9,0.00014794,2]
[324853736,1714373467191,-500.0,0.00014794,2]
[324853737,1714373467211,-797.11,0.00014794,2]
[324853738,1714373467233,-604.72,0.00014794,2]
[324853739,1714373467260,-500.0,0.00014794,2]
[324853740,1714373467286,-1382.46,0.00014794,2]
[324853741,1714373467312,-500.0,0.00014794,2]
[324853742,1714373467332,-2899.35,0.00014794,2]
[324853743,1714373467356,-643.79,0.00014794,2]
[324853744,1714373467382,-1036.38,0.00014794,2]
[324853745,1714373467404,-500.0,0.00014794,2]
[324853746,1714373467418,-500.0,0.00014794,2]
[324853747,1714373467428,-548.72816181,0.00014794,2]
[324853748,1714373467438,-500.0,0.00014794,2]
[324853749,1714373467448,-500.0,0.00014794,2]
[324853750,1714373467459,-500.0,0.00014794,2]
[324853751,1714373467469,-3783.63,0.00014794,2]
[324853752,1714373467486,-567.55,0.00014794,2]
[324853753,1714373467497,-500.0,0.00014794,2]
[324853754,1714373467508,-1762.71,0.00014794,2]
[324853755,1714373467518,-544.02,0.00014794,2]
[324853756,1714373467527,-500.0,0.00014794,2]
[324853757,1714373467538,-500.0,0.00014794,2]
[324853758,1714373467548,-909.69,0.00014794,2]
[324853759,1714373467559,-500.0,0.00014794,2]
[324853760,1714373467569,-1544.95,0.00014794,2]
[324853761,1714373467579,-566.35,0.00014794,2]
[324853762,1714373467589,-1632.08,0.00014794,2]
[324853763,1714373467599,-2536.93,0.00014794,2]
[324853764,1714373467609,-16167.34,0.00014794,2]
[324853765,1714373467619,-3184.94,0.00014794,2]
[324853766,1714373467628,-844.47,0.00014794,2]
[324853767,1714373467638,-1248.72,0.00014794,2]
[324853768,1714373467648,-705.06,0.00014794,2]
[324853769,1714373467658,-500.0,0.00014794,2]
[324853770,1714373467667,-5367.9,0.00014794,2]
[324853771,1714373467677,-500.0,0.00014794,2]
[324853772,1714373467687,-603.55,0.00014794,2]
[324853773,1714373467696,-1338.49,0.00014794,2]
[324853774,1714373467706,-500.0,0.00014794,2]
[324853775,1714373467718,-752.29,0.00014794,2]
[324853776,1714373467731,-803.38,0.00014794,2]
[324853777,1714373467740,-500.0,0.00014794,2]
[324853778,1714373467750,-12574.48,0.00014794,2]
[324853779,1714373467759,-12192.24,0.00014794,2]
[324853780,1714373467770,-500.0,0.00014794,2]
[324853781,1714373467779,-998.22,0.00014794,2]
[324853782,1714373467789,-589.37,0.00014794,2]
[324853783,1714373467798,-5507.92,0.00014794,2]
[324853784,1714373467808,-992.33,0.00014794,2]
[324853785,1714373467817,-500.0,0.00014794,2]
[324853786,1714373467827,-203.7672836,0.00014795,2]
[324853787,1714373467836,-203.7672836,0.00014795,2]
[324853788,1714373467846,-203.7672836,0.00014795,2]
[324853789,1714373467855,-203.7672836,0.00014795,2]
[324853790,1714373467864,-405.0015487,0.00014795,2]
[324853791,1714373467874,-620.00037627,0.00014844,2]
[324853792,1714373467884,-234.88278666,0.000149,2]
[324853793,1714373467897,-234.88278665,0.000149,2]
[324853794,1714373467907,-234.88278665,0.000149,2]
[324853795,1714373467916,-420.0,0.00014903,2]
[324853796,1714373467925,-420.0,0.00014957,2]
[324853797,1714373467935,-272.67396181,0.00015,2]
[324853798,1714373467944,-939.34960788,0.00015,2]
[324853799,1714373467954,-1677.62779446,0.00015,2]
[324853800,1714373467965,-154.79876161,0.00015,2]
[324853801,1714373467978,-2111.9045867,0.00015,2]
[324853802,1714373467987,-2806.60876212,0.00015,2]
[324853803,1714373467997,-154.84204558,0.00015,2]
[324853804,1714373468006,-2392.02569071,0.00015,2]
[324853805,1714373468016,-789.61623458,0.00015061,2]
[324853806,1714373468026,-500.0,0.00015068,2]
[324853807,1714373468036,-500.0,0.00015068,2]
[324853808,1714373468048,-500.0,0.00015068,2]
[324853809,1714373468058,-500.0,0.00015068,2]
[324853810,1714373468067,-181.21296917,0.00015068,2]
[324853811,1714373468077,-523.85,0.00015068,2]
[324853812,1714373468087,-508.84,0.00015068,2]
[324853813,1714373468097,-500.0,0.00015068,2]
[324853814,1714373468106,-500.0,0.00015068,2]
[324853815,1714373468116,-500.0,0.00015068,2]
[324853816,1714373468125,-500.0,0.00015068,2]
[324853817,1714373468134,-625.82,0.00015068,2]
[324853818,1714373468143,-500.0,0.00015068,2]
[324853819,1714373468153,-500.0,0.00015068,2]
[324853820,1714373468162,-500.0,0.00015068,2]
[324853821,1714373468172,-500.0,0.00015068,2]
[324853822,1714373468182,-1626.12,0.00015068,2]
[324853823,1714373468193,-500.0,0.00015068,2]
[324853824,1714373468203,-500.0,0.00015068,2]
[324853825,1714373468212,-500.0,0.00015068,2]
[324853826,1714373468224,-611.54,0.00015068,2]
[324853827,1714373468234,-559.33,0.00015068,2]
[324853828,1714373468243,-608.08,0.00015068,2]
[324853829,1714373468253,-500.0,0.00015068,2]
[324853830,1714373468262,-500.0,0.00015068,2]
[324853831,1714373468273,-500.0,0.00015068,2]
[324853832,1714373468282,-687.07,0.00015068,2]
[324853833,1714373468293,-500.0,0.00015068,2]
[324853834,1714373468302,-500.0,0.00015068,2]
[324853835,1714373468311,-504.72,0.00015068,2]
[324853836,1714373468320,-500.0,0.00015068,2]
[324853837,1714373468330,-832.64,0.00015068,2]
[324853838,1714373468339,-500.0,0.00015068,2]
[324853839,1714373468348,-515.01,0.00015068,2]
[324853840,1714373468357,-1105.2,0.00015068,2]
[324853841,1714373468367,-630.39,0.00015068,2]
[324853842,1714373468377,-604.09,0.00015068,2]
[324853843,1714373468387,-500.0,0.00015068,2]
[324853844,1714373468396,-500.0,0.00015068,2]
[324853845,1714373468406,-500.0,0.00015068,2]
[324853846,1714373468416,-500.0,0.00015068,2]
[324853847,1714373468426,-693.58,0.00015068,2]
[324853848,1714373468435,-598.14,0.00015068,2]
[324853849,1714373468445,-591.07,0.00015068,2]
[324853850,1714373468454,-673.38,0.00015068,2]
[324853851,1714373468463,-500.0,0.00015068,2]
[324853852,1714373468475,-533.22,0.00015068,2]
[324853853,1714373468484,-1230.36,0.00015068,2]
[324853854,1714373468494,-500.0,0.00015068,2]
[324853855,1714373468503,-1147.49,0.00015068,2]
[324853856,1714373468512,-500.0,0.00015068,2]
[324853857,1714373468595,-1302.49,0.00015068,2]
[324853858,1714373468606,-844.49,0.00015068,2]
[324853859,1714373468616,-500.0,0.00015068,2]
[324853860,1714373468626,-614.75,0.00015068,2]
[324853861,1714373468636,-500.0,0.00015068,2]
[324853862,1714373468645,-1388.78,0.00015068,2]
[324853863,1714373468654,-500.0,0.00015068,2]
[324853864,1714373468664,-623.41,0.00015068,2]
[324853865,1714373468673,-797.81,0.00015068,2]
[324853866,1714373468682,-500.0,0.00015068,2]
[324853867,1714373468692,-590.29,0.00015068,2]
[324853868,1714373468701,-500.0,0.00015068,2]
[324853869,1714373468710,-807.83,0.00015068,2]
[324853870,1714373468719,-607.0,0.00015068,2]
[324853871,1714373468731,-500.0,0.00015068,2]
[324853872,1714373468740,-940.83,0.00015068,2]
[324853873,1714373468749,-500.0,0.00015068,2]
[324853874,1714373468758,-500.0,0.00015068,2]
[324853875,1714373468768,-500.0,0.00015068,2]
[324853876,1714373468777,-782.16,0.00015068,2]
[324853877,1714373468787,-500.0,0.00015068,2]
[324853878,1714373468797,-520.06,0.00015068,2]
[324853879,1714373468807,-500.0,0.00015068,2]
[324853880,1714373468816,-500.0,0.00015068,2]
[324853881,1714373468826,-500.0,0.00015068,2]
[324853882,1714373468835,-564.0,0.00015068,2]
[324853883,1714373468848,-851.11,0.00015068,2]
[324853884,1714373468858,-510.47,0.00015068,2]
[324853885,1714373468869,-500.0,0.00015068,2]
[324853886,1714373468885,-500.0,0.00015068,2]
[324853887,1714373468895,-1533.33,0.00015068,2]
[324853888,1714373468907,-1895.96,0.00015068,2]
[324853889,1714373468917,-1322.31,0.00015068,2]
[324853890,1714373468929,-500.0,0.00015068,2]
[324853891,1714373468939,-500.0,0.00015068,2]
[324853892,1714373468948,-500.0,0.00015068,2]
[324853893,1714373468959,-500.0,0.00015068,2]
[324853894,1714373468976,-1437.53,0.00015068,2]
[324853895,1714373468995,-500.0,0.00015068,2]
[324853896,1714373469006,-496.18434808,0.00015068,2]
[324853897,1714373469017,-1191.98,0.00015068,2]
[324853898,1714373469029,-500.0,0.00015068,2]
[324853899,1714373469046,-1134.6,0.00015068,2]
[324853900,1714373469056,-1094.75,0.00015068,2]
[324853901,1714373469067,-510.32,0.00015068,2]
[324853902,1714373469090,-2552.95,0.00015068,2]
[324853903,1714373469100,-1704.43,0.00015068,2]
[324853904,1714373469111,-1486.42,0.00015068,2]
[324853905,1714373469120,-500.0,0.00015068,2]
[324853906,1714373469130,-500.0,0.00015068,2]
[324853907,1714373469141,-500.0,0.00015068,2]
[324853908,1714373469158,-500.0,0.00015068,2]
[324853909,1714373469168,-500.0,0.00015068,2]
[324853910,1714373469178,-500.0,0.00015068,2]
[324853911,1714373469188,-500.0,0.00015068,2]
[324853912,1714373469199,-204.19504048,0.00015068,2]
[324853913,1714373469212,-725.26,0.00015068,2]
[324853914,1714373469231,-528.19107815,0.00015068,2]
[324853915,1714373469245,-500.0,0.00015068,2]
[324853916,1714373469257,-844.8,0.00015068,2]
[324853917,1714373469267,-663.85,0.00015068,2]
[324853918,1714373469278,-500.0,0.00015068,2]
[324853919,1714373469296,-590.93,0.00015068,2]
[324853920,1714373469319,-500.0,0.00015068,2]
[324853921,1714373469335,-500.0,0.00015068,2]
[324853922,1714373469355,-500.0,0.00015068,2]
[324853923,1714373469373,-500.0,0.00015068,2]
[324853924,1714373469391,-500.0,0.00015068,2]
[324853925,1714373469411,-500.0,0.00015068,2]
[324853926,1714373469434,-963.94,0.00015068,2]
[324853927,1714373469450,-500.0,0.00015068,2]
[324853928,1714373469469,-500.0,0.00015068,2]
[324853929,1714373469493,-790.18,0.00015068,2]
[324853930,1714373469510,-500.0,0.00015068,2]
[324853931,1714373469529,-1385.15,0.00015068,2]
[324853932,1714373469546,-904.16,0.00015068,2]
[324853933,1714373469563,-556.73,0.00015068,2]
[324853934,1714373469580,-500.0,0.00015068,2]
[324853935,1714373469596,-500.0,0.00015068,2]
[324853936,1714373469611,-2612.66,0.00015068,2]
[324853937,1714373469626,-670.19,0.00015068,2]
[324853938,1714373469641,-5705.05,0.00015068,2]
[324853939,1714373469656,-500.0,0.00015068,2]
[324853940,1714373469671,-3685.88,0.00015068,2]
[324853941,1714373469686,-500.0,0.00015068,2]
[324853942,1714373469701,-500.0,0.00015068,2]
[324853943,1714373469716,-500.0,0.00015068,2]
[324853944,1714373469736,-500.0,0.00015068,2]
[324853945,1714373469749,-500.0,0.00015068,2]
[324853946,1714373469764,-363.09289237,0.00015068,2]
[324853947,1714373469780,-500.0,0.00015068,2]
[324853948,1714373469795,-3055.4,0.00015068,2]
[324853949,1714373469810,-500.0,0.00015068,2]
[324853950,1714373469826,-943.99,0.00015068,2]
[324853951,1714373469841,-500.0,0.00015068,2]
[324853952,1714373469856,-500.0,0.00015068,2]
[324853953,1714373469872,-676.52,0.00015068,2]
[324853954,1714373469888,-2057.47,0.00015068,2]
[324853955,1714373469903,-598.25,0.00015068,2]
[324853956,1714373469919,-1272.21,0.00015068,2]
[324853957,1714373469934,-7316.87,0.00015068,2]
[324853958,1714373469949,-500.0,0.00015068,2]
[324853959,1714373469965,-726.9,0.00015068,2]
[324853960,1714373469984,-500.0,0.00015068,2]
[324853961,1714373470000,-797.11,0.00015068,2]
[324853962,1714373470015,-604.72,0.00015068,2]
[324853963,1714373470031,-500.0,0.00015068,2]
[324853964,1714373470046,-1382.46,0.00015068,2]
[324853965,1714373470062,-500.0,0.00015068,2]
[324853966,1714373470077,-2899.35,0.00015068,2]
[324853967,1714373470094,-643.79,0.00015068,2]
[324853968,1714373470109,-1036.38,0.00015068,2]
[324853969,1714373470125,-500.0,0.00015068,2]
[324853970,1714373470140,-500.0,0.00015068,2]
[324853971,1714373470155,-500.0,0.00015068,2]
[324853972,1714373470172,-500.0,0.00015068,2]
[324853973,1714373470187,-500.0,0.00015068,2]
[324853974,1714373470208,-3783.63,0.00015068,2]
[324853975,1714373470223,-567.55,0.00015068,2]
[324853976,1714373470244,-500.0,0.00015068,2]
[324853977,1714373470260,-1762.71,0.00015068,2]
[324853978,1714373470278,-544.02,0.00015068,2]
[324853979,1714373470294,-500.0,0.00015068,2]
[324853980,1714373470420,-500.0,0.00015068,2]
[324853981,1714373470436,-909.69,0.00015068,2]
[324853982,1714373470446,-500.0,0.00015068,2]
[324853983,1714373470456,-1544.95,0.00015068,2]
[324853984,1714373470466,-566.35,0.00015068,2]
[324853985,1714373470478,-1632.08,0.00015068,2]
[324853986,1714373470488,-2536.93,0.00015068,2]
[324853987,1714373470497,-16167.34,0.00015068,2]
[324853988,1714373470507,-3184.94,0.00015068,2]
[324853989,1714373470518,-844.47,0.00015068,2]
[324853990,1714373470527,-1248.72,0.00015068,2]
[324853991,1714373470538,-705.06,0.00015068,2]
[324853992,1714373470548,-500.0,0.00015068,2]
[324853993,1714373470558,-5367.9,0.00015068,2]
[324853994,1714373470568,-500.0,0.00015068,2]
[324853995,1714373470578,-603.55,0.00015068,2]
[324853996,1714373470587,-1338.49,0.00015068,2]
[324853997,1714373470596,-500.0,0.00015068,2]
[324853998,1714373470607,-752.29,0.00015068,2]
[324853999,1714373470616,-803.38,0.00015068,2]
[324854000,1714373470626,-500.0,0.00015068,2]
[324854001,1714373470636,-12574.48,0.00015068,2]
[324854002,1714373470646,-12192.24,0.00015068,2]
[324854003,1714373470657,-500.0,0.00015068,2]
[324854004,1714373470668,-998.22,0.00015068,2]
[324854005,1714373470678,-589.37,0.00015068,2]
[324854006,1714373470688,-5507.92,0.00015068,2]
[324854007,1714373470698,-992.33,0.00015068,2]
[324854008,1714373470708,-500.0,0.00015068,2]
[324854009,1714373470717,-203.7672836,0.00015068,2]
[324854010,1714373470728,-250.0,0.00015084,2]
[324854011,1714373470738,-1332.9,0.0001517,3]
[324854012,1714373470748,-588.0,0.000152,2]
[324854013,1714373470758,-412.18352757,0.00015342,2]
[324854014,1714373470768,-500.0,0.00015342,2]
[324854015,1714373470778,-500.0,0.00015342,2]
[324854016,1714373470788,-500.0,0.00015342,2]
[324854017,1714373470798,-523.85,0.00015342,2]
[324854018,1714373470808,-508.84,0.00015342,2]
[324854019,1714373470818,-500.0,0.00015342,2]
[324854020,1714373470827,-500.0,0.00015342,2]
[324854021,1714373470837,-500.0,0.00015342,2]
[324854022,1714373470846,-500.0,0.00015342,2]
[324854023,1714373470856,-625.82,0.00015342,2]
[324854024,1714373470865,-500.0,0.00015342,2]
[324854025,1714373470875,-500.0,0.00015342,2]
[324854026,1714373470885,-500.0,0.00015342,2]
[324854027,1714373470895,-500.0,0.00015342,2]
[324854028,1714373470905,-1626.12,0.00015342,2]
[324854029,1714373470915,-500.0,0.00015342,2]
[324854030,1714373470925,-500.0,0.00015342,2]
[324854031,1714373470935,-500.0,0.00015342,2]
[324854032,1714373470945,-611.54,0.00015342,2]
[324854033,1714373470955,-559.33,0.00015342,2]
[324854034,1714373470965,-608.08,0.00015342,2]
[324854035,1714373470978,-500.0,0.00015342,2]
[324854036,1714373470989,-500.0,0.00015342,2]
[324854037,1714373471000,-500.0,0.00015342,2]
[324854038,1714373471010,-687.07,0.00015342,2]
[324854039,1714373471020,-500.0,0.00015342,2]
[324854040,1714373471031,-500.0,0.00015342,2]
[324854041,1714373471041,-504.72,0.00015342,2]
[324854042,1714373471052,-500.0,0.00015342,2]
[324854043,1714373471062,-832.64,0.00015342,2]
[324854044,1714373471072,-500.0,0.00015342,2]
[324854045,1714373471082,-515.01,0.00015342,2]
[324854046,1714373471092,-1105.2,0.00015342,2]
[324854047,1714373471102,-630.39,0.00015342,2]
[324854048,1714373471112,-604.09,0.00015342,2]
[324854049,1714373471122,-500.0,0.00015342,2]
[324854050,1714373471132,-500.0,0.00015342,2]
[324854051,1714373471143,-500.0,0.00015342,2]
[324854052,1714373471153,-500.0,0.00015342,2]
[324854053,1714373471164,-693.58,0.00015342,2]
[324854054,1714373471174,-598.14,0.00015342,2]
[324854055,1714373471183,-591.07,0.00015342,2]
[324854056,1714373471198,-673.38,0.00015342,2]
[324854057,1714373471207,-500.0,0.00015342,2]
[324854058,1714373471218,-533.22,0.00015342,2]
[324854059,1714373471230,-1230.36,0.00015342,2]
[324854060,1714373471241,-500.0,0.00015342,2]
[324854061,1714373471251,-1147.49,0.00015342,2]
[324854062,1714373471262,-500.0,0.00015342,2]
[324854063,1714373471272,-1302.49,0.00015342,2]
[324854064,1714373471282,-844.49,0.00015342,2]
[324854065,1714373471293,-500.0,0.00015342,2]
[324854066,1714373471305,-614.75,0.00015342,2]
[324854067,1714373471315,-500.0,0.00015342,2]
[324854068,1714373471327,-1388.78,0.00015342,2]
[324854069,1714373471337,-500.0,0.00015342,2]
[324854070,1714373471347,-623.41,0.00015342,2]
[324854071,1714373471356,-797.81,0.00015342,2]
[324854072,1714373471367,-500.0,0.00015342,2]
[324854073,1714373471376,-590.29,0.00015342,2]
[324854074,1714373471386,-500.0,0.00015342,2]
[324854075,1714373471396,-807.83,0.00015342,2]
[324854076,1714373471405,-607.0,0.00015342,2]
[324854077,1714373471414,-500.0,0.00015342,2]
[324854078,1714373471424,-940.83,0.00015342,2]
[324854079,1714373471433,-500.0,0.00015342,2]
[324854080,1714373471443,-500.0,0.00015342,2]
[324854081,1714373471452,-782.16,0.00015342,2]
[324854082,1714373471461,-500.0,0.00015342,2]
[324854083,1714373471471,-520.06,0.00015342,2]
[324854084,1714373471483,-500.0,0.00015342,2]
[324854085,1714373471492,-500.0,0.00015342,2]
[324854086,1714373471502,-500.0,0.00015342,2]
[324854087,1714373471511,-564.0,0.00015342,2]
[324854088,1714373471521,-851.11,0.00015342,2]
[324854089,1714373471532,-510.47,0.00015342,2]
[324854090,1714373471548,-500.0,0.00015342,2]
[324854091,1714373471560,-500.0,0.00015342,2]
[324854092,1714373471570,-1533.33,0.00015342,2]
[324854093,1714373471580,-1895.96,0.00015342,2]
[324854094,1714373471590,-1322.31,0.00015342,2]
[324854095,1714373471600,-500.0,0.00015342,2]
[324854096,1714373471610,-500.0,0.00015342,2]
[324854097,1714373471620,-500.0,0.00015342,2]
[324854098,1714373471629,-500.0,0.00015342,2]
[324854099,1714373471640,-1437.53,0.00015342,2]
[324854100,1714373471650,-500.0,0.00015342,2]
[324854101,1714373471660,-1191.98,0.00015342,2]
[324854102,1714373471670,-500.0,0.00015342,2]
[324854103,1714373471680,-1134.6,0.00015342,2]
[324854104,1714373471689,-1094.75,0.00015342,2]
[324854105,1714373471699,-510.32,0.00015342,2]
[324854106,1714373471709,-2552.95,0.00015342,2]
[324854107,1714373471718,-1704.43,0.00015342,2]
[324854108,1714373471730,-1486.42,0.00015342,2]
[324854109,1714373471740,-500.0,0.00015342,2]
[324854110,1714373471749,-500.0,0.00015342,2]
[324854111,1714373471758,-500.0,0.00015342,2]
[324854112,1714373471768,-500.0,0.00015342,2]